Cogmind - Beta 10.1 @@@ ROGUE MODE // 2020.09.24 @ 10:59:13 Player: DragoX Result: Destroyed by as-13122 with Assembled Blade Performance ------------- Evolutions (0) 0 Regions Visited (2) 400 Robots Destroyed (46) 230 Value Destroyed (782) 782 Prototype IDs (0) 0 Alien Tech Used (0) 0 Bonus (0) 0 TOTAL SCORE: 1412 Bonus ------- None Cogmind --------- Core Integrity 0/250 Matter 300/300 Energy 72/100 System Corruption 4% Temperature Cool (135) Movement Walking (300) Ox6 Location -10/Mines Parts ------- > --- POWER (1) -------- (None) > --- PROPULSION (2) --- Aluminum Leg > --- UTILITY (2) ------ High-capacity Storage Unit High-capacity Storage Unit > --- WEAPON (2) ------- Beam Cannon > --- INVENTORY (20) --- Large Storage Unit Improved Sensor Array Improved Sensor Array Utility Shielding Shield Generator Shield Generator Hacking Suite Hacking Suite Datajack Peak State ------------ > --- POWER ------------ Light Ion Engine > --- PROPULSION ------- Hover Unit Hover Unit > --- UTILITY ---------- Large Storage Unit High-capacity Storage Unit > --- WEAPON ----------- Beam Cannon Beam Cannon > --- INVENTORY -------- Light Ion Engine Large Storage Unit Improved Sensor Array Improved Sensor Array Utility Shielding Shield Generator Shield Generator Hacking Suite Hacking Suite Beam Cannon Beam Cannon Datajack [Rating: 9] Favorites ----------- Power Light Ion Engine Engine Light Ion Engine Propulsion Light Treads Treads Light Treads Leg Aluminum Leg Hover Unit Hover Unit Utility High-capacity Storage Unit Storage High-capacity Storage Unit Weapon Beam Cannon Energy Gun Particle Gun Energy Cannon Beam Cannon Ballistic Gun Heavy Assault Rifle Build | -11 -10 -10 ------- Run | Scr Mat Min Slots Evolved . | . . . Power . | . . . Propulsion . | . . . Utility . | . . . Weapon . | . . . Parts Attached 33 | 6 24 3 Power 4 | 1 2 1 Engine 4 | 1 2 1 Core . | . . . Reactor . | . . . Propulsion 7 | 2 5 . Treads 3 | 2 1 . Leg 2 | . 2 . Wheel . | . . . Hover 2 | . 2 . Flight . | . . . Utility 7 | 1 6 . Device . | . . . Storage 7 | 1 6 . Processor . | . . . Hackware . | . . . Protection . | . . . Artifact . | . . . Weapon 15 | 2 11 2 Energy Gun 2 | 1 1 . Energy Cannon 4 | . 2 2 Ballistic Gun 9 | 1 8 . Ballistic Cannon . | . . . Launcher . | . . . Special Weapon . | . . . Impact Weapon . | . . . Slashing Weapon . | . . . Piercing Weapon . | . . . Special Melee Weapon . | . . . Unidentified Prototypes . | . . . Parts Lost 12 | . 9 3 Power 3 | . 1 2 Propulsion 3 | . 3 . Utility . | . . . Weapon 6 | . 5 1 Highest Loss Streak 4 | . 4 2 Average Slot Usage (%) 81 | . 79 97 Engine 8 | . 8 12 Treads 6 | . 7 . Leg 4 | . 1 28 Hover 7 | . 8 . Storage 27 | . 27 28 Energy Gun 1 | . 2 . Energy Cannon 12 | . 10 27 Ballistic Gun 11 | . 12 . Naked Turns . | . . . Heaviest Build 73 | 11 73 73 Greatest Support 40 | 40 40 20 Greatest Overweight (x) 17 | . 17 3 Average Overweight (x) 4 | . 4 3 Largest Inventory Capacity 20 | 6 20 20 Average Capacity 17 | 5 17 20 Most Carried 13 | 2 13 12 Average Carried 8 | 1 8 11 Final Capacity 20 | 6 20 20 Final Carried 12 | 2 12 9 Class Distribution -------------------- 79% | Mutant 19% | Hauler-Mutant Dominant Class ---------------- Mutant | -10/Materials Hauler-Mutant | -10/Mines Resources | -11 -10 -10 ----------- Run | Scr Mat Min Matter Collected 876 | 266 570 40 Remotely . | . . . Salvage Created 1458 | 68 1242 148 Parts 83 | 3 80 . Haulers Intercepted 2 | . 2 . Recyclers Shooed 2 | . 2 . Parts Field Recycled . | . . . Retrieved Matter . | . . . Parts Self-Destructed . | . . . Prevented . | . . . Kills | -11 -10 -10 ------- Run | Scr Mat Min Combat Hostiles Destroyed 29 | . 19 10 Guns 18 | . 18 . Cannons 11 | . 1 10 Classes Destroyed 9 | 1 7 1 Worker 2 | . 2 . Builder 2 | . 2 . Hauler 2 | . 2 . Recycler 4 | 1 3 . Operator 4 | . 4 . Watcher 3 | . 3 . Swarmer 3 | . 3 . Grunt 16 | . 16 . Assembled 10 | . . 10 Best Kill Streak 6 | 1 6 2 Combat Bots Only 3 | . 3 2 Max Kills in Single Turn 3 | 1 3 1 Gunslinging . | . . . Exploded . | . . . Melee . | . . . Uniques/NPCs Destroyed . | . . . Combat | -11 -10 -10 -------- Run | Scr Mat Min Damage Taken 1922 | . 1404 518 Core 279 | . 213 66 Absorbed by Shields . | . . . Core Remaining (%) 100 | 100 . . Volleys Fired 162 | 2 113 47 Largest 2 | 2 2 2 Hottest 120 | 70 120 120 Shots Fired 252 | 4 187 61 Gun 167 | 4 163 . Cannon 85 | . 24 61 Launcher . | . . . Special . | . . . Kinetic 141 | 2 139 . Thermal 111 | 2 48 61 Explosive . | . . . Electromagnetic . | . . . Robot Hit Streak 11 | 1 11 7 Robot Miss Streak 6 | 1 5 6 Penetration Max . | . . . Secondary Targets 3 | . 3 . Max Gunslinging Chain 1 | . 1 . Shots Hit Robots 146 | 2 115 29 Core Hits 71 | 2 50 19 Critical Hits 2 | . 2 . Critical Kills 2 | . 2 . Critical Parts Destroyed . | . . . Melee Attacks . | . . . Impact . | . . . Slashing . | . . . Piercing . | . . . Sneak Attacks . | . . . Combat Hostiles . | . . . Follow-up Attacks . | . . . Damage Inflicted 2461 | 27 1889 545 Guns 1375 | 27 1348 . Cannons 737 | . 192 545 Explosions 349 | . 349 . Melee . | . . . Ramming . | . . . Kinetic 1080 | 27 1053 . Thermal 1032 | . 487 545 Explosive 349 | . 349 . Electromagnetic . | . . . Impact . | . . . Slashing . | . . . Piercing . | . . . Highest Corruption 4 | . . 4 Average Corruption 4 | . . 4 Corruption Purged . | . . . Effects 2 | . . 2 Parts Rejected 1 | . . 1 Targeting Errors 1 | . . 1 Overload Shots . | . . . Overflow Damage 183 | . 181 2 Projectiles 2 | . . 2 Explosions 181 | . 181 . Melee . | . . . Knockbacks . | . . . Impact . | . . . Kinetic . | . . . Secondary . | . . . Self-Inflicted Damage 217 | . 217 . Shots 3 | . 3 . Rammed . | . . . Targets Rammed . | . . . Kicked . | . . . Crushed . | . . . Highest Temperature 490 | 18 279 490 Average Temperature 120 | 10 77 170 Received Heat Transfer 581 | . 561 20 Effects 7 | . 1 6 Energy Bleed 1 | . . 1 Interference 2 | . 1 1 Matter Decay 1 | . . 1 Short Circuit 2 | . . 2 Damage (minor) 1 | . . 1 Siege Activations . | . . . Robots Corrupted . | . . . Combat Hostiles . | . . . Parts Fried . | . . . Impact Corruptions . | . . . Robots Melted . | . . . Combat Hostiles . | . . . Parts Melted 4 | . 4 . Heat Transferred 2257 | . 1110 1147 Parts Sabotaged . | . . . Parts Stolen . | . . . Parts Stripped . | . . . Power Chain Reactions . | . . . Missiles Intercepted . | . . . Alert | -11 -10 -10 ------- Run | Scr Mat Min Peak Influence 276 | 5 276 13 Initial 13 | . 3 13 Average 73 | 2 85 8 Maximum Alert Level 1 | . 1 . Low Security (%) 93 | 100 92 100 Level 1 6 | . 7 . Level 2 . | . . . Level 3 . | . . . Level 4 . | . . . Level 5 . | . . . High Security . | . . . Max Security . | . . . Squads Dispatched 7 | . 7 . Investigation 3 | . 3 . Extermination . | . . . Reinforcement 4 | . 4 . Assault . | . . . Garrison . | . . . Intercept . | . . . Construction Impeded . | . . . Haulers Reinforced . | . . . Stealth | -11 -10 -10 --------- Run | Scr Mat Min Distress Signals 1 | . . 1 Communications Jammed . | . . . Distress Signals . | . . . Times Spotted 48 | . 34 14 Peak Tracking Total 3 | . 3 3 Tactical Retreats . | . . . Traps | -11 -10 -10 ------- Run | Scr Mat Min Traps Triggered 3 | . 3 . Indirectly . | . . . Trap Hack Attempts . | . . . Triggered . | . . . Disarmed . | . . . Reprogrammed . | . . . Reused . | . . . Traps Extracted . | . . . Installed . | . . . Triggered . | . . . Machines | -11 -10 -10 ---------- Run | Scr Mat Min Machines Disabled 3 | . 3 . Max in Single Turn 2 | . 2 . Machines Sabotaged . | . . . Garrisons Compromised . | . . . Overloaded Fab Kills . | . . . Fab Network Shutdowns . | . . . Hacking | -11 -10 -10 --------- Run | Scr Mat Min Machines Accessed . | . . . Terminals . | . . . Fabricators . | . . . Repair Stations . | . . . Recycling Units . | . . . Scanalyzers . | . . . Garrison Access . | . . . Total Hacks . | . . . Successful . | . . . Failed . | . . . Catastrophic . | . . . Database Lockouts . | . . . Manual . | . . . Terminals . | . . . Fabricators . | . . . Repair Stations . | . . . Recycling Units . | . . . Scanalyzers . | . . . Garrison Access . | . . . Terminal Hacks . | . . . Fabricator Hacks . | . . . Repair Station Hacks . | . . . Recycling Unit Hacks . | . . . Scanalyzer . | . . . Garrison Access Hacks . | . . . Unauthorized Hacks . | . . . Terminals . | . . . Fabricators . | . . . Repair Stations . | . . . Recycling Units . | . . . Scanalyzers . | . . . Garrison Access . | . . . Data Cores Recovered 1 | . 1 . Used . | . . . Hacking Detections . | . . . Full Trace Events . | . . . Feedback Events . | . . . Feedback Blocked . | . . . Robot Schematics Acquired . | . . . Robots Built . | . . . Matter . | . . . Time . | . . . Total Robot Build Rating . | . . . Part Schematics Acquired . | . . . Parts Built . | . . . Matter . | . . . Time . | . . . Total Part Build Rating . | . . . Parts Repaired . | . . . Time . | . . . Parts Recycled . | . . . Recycled Matter . | . . . Retrieved Matter . | . . . Retrieved Components . | . . . Parts Scanalyzed . | . . . Part Schematics Acquired . | . . . Parts Damaged . | . . . Bothacking | -11 -10 -10 ------------ Run | Scr Mat Min Used RIF Installer . | . . . Robots Hacked . | . . . Non-combat . | . . . Combat . | . . . Robot Hacks Applied . | . . . Relay Couplers Released . | . . . Robots Rewired . | . . . Allies Hacked . | . . . Hacks Repelled . | . . . Allies | -11 -10 -10 -------- Run | Scr Mat Min Total Allies . | . . . Largest Group . | . . . Highest-Rated Group . | . . . Highest-Rated Ally . | . . . Total Orders . | . . . Ally Attacks . | . . . Total Damage . | . . . Kills . | . . . Allies Corrupted . | . . . Allies Melted . | . . . Intel | -11 -10 -10 ------- Run | Scr Mat Min Robot Analysis Total . | . . . Derelict Logs Recovered 2 | . . 2 Drone Launches . | . . . Drone Recoveries . | . . . Exploration | -11 -10 -10 ------------- Run | Scr Mat Min Turns Passed 3234 | 112 2752 370 Spaces Moved 869 | 60 691 118 Core 89 | 3 86 . Treads 356 | 57 299 . Legs 173 | . 55 118 Wheels . | . . . Hover 251 | . 251 . Flight . | . . . Fastest Speed 50 | 50 160 210 Average Speed 299 | 154 327 210 Slowest Speed 900 | 160 900 210 Overloaded Moves . | . . . Propulsion Burnouts . | . . . Robots Hopped . | . . . Cave-ins Triggered . | . . . Exploration Rate (%) 44 | 4 90 39 Regions Visited 2 Branch Regions 1 Pre-discovered Areas . | . . . Known Exits Taken . | . . . Unknown Exits Taken 2 | 1 1 . Scrap Searched . | . . . Spaces Dug . | . . . Terrain Destroyed 42 | . 42 . Melee . | . . . Projectile . | . . . AOE 42 | . 42 . Terrain Rammed . | . . . Walls Destroyed . | . . . Machines Disabled . | . . . Actions | -11 -10 -10 --------- Run | Scr Mat Min Total 1251 | 72 998 181 Wait 154 | 3 139 12 Move 867 | 59 690 118 Hop . | . . . Pick Up 23 | 2 21 . Fast Attach 12 | 6 6 . Attach 15 | . 12 3 Detach . | . . . Swap 6 | . 6 . Drop 12 | . 11 1 Fire 162 | 2 113 47 Melee . | . . . Ram . | . . . Kick . | . . . Crush . | . . . Escape Stasis . | . . . Rewire . | . . . Trap . | . . . Miscellaneous . | . . . Route ------- -11/Scrapyard -10/Materials (discovered 5 exits: [*Mat x3] / [*Min x2]) -10/Mines History --------- Turn | Location | Event 11 | -11/Scrapyard | Discovered new exit (range 15) 113 | -11/Scrapyard | Entered Materials 309 | -10/Materials | Build established: Mutant 701 | -10/Materials | Lost 4 parts (2n2w) 773 | -10/Materials | Discovered new exit (range 14) 781 | -10/Materials | Core integrity fell below 50% 890 | -10/Materials | Discovered new exit (range 13) 1330 | -10/Materials | Discovered new exit (range 9) 1423 | -10/Materials | Core integrity fell below 20% 1718 | -10/Materials | Discovered new exit (range 15) 2019 | -10/Materials | Discovered new exit (range 8) 2865 | -10/Materials | Entered Mines 2894 | -10/Mines | Assembled infested the area 2899 | -10/Mines | Assisted by a Guerilla fighting off Assembled 2920 | -10/Mines | Build established: Hauler-Mutant 3164 | -10/Mines | Learned 2 Materials zone layouts 3235 | -10/Mines | Destroyed by as-13122 with Assembled Blade Last Messages --------------- 03150_ U-05 Engineer lays Concrete. 03154_ as-77333 sneak attacks. 03154_ Destroyed Asb. Hover Unit. 03158_ as-77333 destroyed. 03164_ Acquired derelict log, extracted data. Data stored: Materials zone layouts (x2). 03182_ Knocked back. 03183_ as-19692 destroyed. 03193_ Beam Cannon destroyed. 03196_ K-01 Serf collects debris. 03198_ as-51479 destroyed. 03200_ K-01 Serf collects debris. 03202_ Acquired 10 matter. 03218_ Lgt. Ion Engine destroyed. 03218_ System corrupted by crushing effect (+4). 03218_ Knocked back. 03219_ System corrupted: Broken Beam Cannon rejected. 03221_ System corrupted: Beam Cannon targeting data glitched. 03227_ as-75026 destroyed. 03233_ Aluminum Leg severed. Map ----- +----------------------------------------------------+ | ?????????????????????????????????????????????????? | | ?????????????????????????????????????????????????? | | ?????????????????????????????????????????????????? | | ?????????????????????????????????????????????????? | | ?????????????????????????????????????????????????? | | ????????????? ????????????????????????????????? | | ????????????? #???????????????????????????????? | | ????????????%! #???????????????????????????????? | | ????????????%% #???????????????????????????????? | | ????????????*% $ ????????????????????????????????? | | ????????????=! ????????????????????????????????? | | ?????????????%!! ????????????????????????????????? | | ?????????????=%!#????????????????????????????????? | | ?????????????=%%#????????????????????????????????? | | ?????????????#!!*????????????????????????????????? | | ?????????????!%!#????????????????????????????????? | | ?????####????#=!#??????####??????????????????????? | | ????## ######=%#??????# ???????????????????????? | | ????# ## #% #??????# #???????????????????????? | | ##### % ########%##??????????????????????? | | % !=| !*! #??????????????????????? | | ] % |!%=% #??????????????????????? | | ##### ### =!######%%#??????????????????????? | | ##??#####?# ##????# #??????????????????????? | | ####?????## ##?????# a#??????????????????????? | | ###????# #??????# @#??????????????????????? | | ##???# #?????#%%#??????????????????????? | | ##??## ##?????# =%%?????????????????????? | | *% #???# #??????# ###????????????????????? | | ## #???# #??????# #??????????????????????? | | ### ##??# #####??# #??????????????????????? | | ### #??# #?? ??????????????????????? | | #?# #?? ??????????????????????? | | #### #?##### #?# """??????????????????????? | | #???### #?????# #?# """??????????????????????? | | #??????# #????# %?a!"""??????????????????????? | | ????????# %*#### #?#*%! ??????????????????????? | | ######???## ! % #?##?????????????????????????? | | #?????# ]""" ##???????????????????????????? | | #### #?????# % """ ##??????????????????????????? | | ?###%###????# """ #??????????????????????????? | | ## ##????# #??????????????????????????? | | # ###??#### ##??????????????????????????? | | #???# ###???????????????????????????? | | #### ## ##### #?????????????????????????????? | | ##???# ### #?????????????????????????????? | | ##???# ######### ##????????????????????????????? | | ##?## ###??## #????????????????????????????? | | ### % #### #????????????????????????????? | | #????????????????????????????? | +----------------------------------------------------+ Best States ------------- Heat Dissipation 25 Energy Generation 10 Energy Capacity 250 Matter Stores 300 Matter Capacity 300 Sight Range 16 Terrain Scan Density 10 Evasion (%) 40 Recoil Reduction 2 Item Schematics ----------------- None Robot Schematics ------------------ None Fabricated ------------ Nothing Alien Tech Used ----------------- None Achievements -------------- None Challenges ------------ None Game ------ Seed HugeTransportBroadsword Manual? 0 Play Time 00:16:16 Cumulative 13.1 hours Start 2020.09.24 @ 10:45:44 End 2020.09.24 @ 10:59:13 Sessions 1 Manual Loads 0 Difficulty Rogue Special Mode None Game No. 21 Rogue 21 Adventurer 0 Explorer 0 Win Type - Total 0 Types 0/0/0/0/0/0/0/0/0 Lore% 10 Gallery% 14 Achievement% 17 Wizard Run 0 Options --------- ASCII 0 Keyboard 0 Movement Mouse Keybinds 0 Fullscreen 1 Font 18/X11 Map View 76x50 Tactical HUD 1 Map Filters NONE Filters NONE Steam 0 RUN: 0f137332-ff1f-45e6-a00d-8afa69246b2b